[Event "January 2 Late 2024"]
[Site "https://www.chess.com"]
[Date "2024.01.02"]
[Round "9"]
[White "Anton Guijarro, David"]
[Black "Nepomniachtchi, Ian"]
[Result "1-0"]
[Board "6"]
[TimeControl "180+1"]
[WhiteFideId "2285525"]
[BlackFideId "4168119"]
[WhiteElo "2987"]
[BlackElo "3124"]
[WhiteTeam "ESP"]
[BlackTeam "RUS"]
[WhiteClock "0:00:07"]
[BlackClock "0:00:00"]

1. Nf3 {[%clk 0:02:59]}  c5 {[%clk 0:02:59]} 2. b3 {[%clk 0:02:59]}  d6 {[%clk 0:02:58]} 3. Bb2 {[%clk 0:02:59]}  e5 {[%clk 0:02:59]} 4. c4 {[%clk 0:02:59]}  Nf6 {[%clk 0:02:58]} 5. d3 {[%clk 0:02:58]}  Nc6 {[%clk 0:02:57]} 6. g3 {[%clk 0:02:58]}  g6 {[%clk 0:02:57]} 7. Bg2 {[%clk 0:02:58]}  Bg7 {[%clk 0:02:58]} 8. O-O {[%clk 0:02:58]}  O-O {[%clk 0:02:59]} 9. e3 {[%clk 0:02:58]}  h6 {[%clk 0:02:59]} 10. Nc3 {[%clk 0:02:58]}  Be6 {[%clk 0:02:56]} 11. Rc1 {[%clk 0:02:54]}  Qd7 {[%clk 0:02:54]} 12. a3 {[%clk 0:02:53]}  Rad8 {[%clk 0:02:48]} 13. Qc2 {[%clk 0:02:36]}  b6 {[%clk 0:02:45]} 14. e4 {[%clk 0:01:51]}  Nh7 {[%clk 0:02:41]} 15. Nd5 {[%clk 0:01:50]}  f5 {[%clk 0:02:40]} 16. Nh4 {[%clk 0:01:47]}  Bf7 {[%clk 0:02:34]} 17. exf5 {[%clk 0:01:45]}  gxf5 {[%clk 0:02:33]} 18. f4 {[%clk 0:01:33]}  exf4 {[%clk 0:02:23]} 19. Bxg7 {[%clk 0:01:28]}  Kxg7 {[%clk 0:02:23]} 20. Qb2+ {[%clk 0:01:27]}  Nd4 {[%clk 0:02:22]} 21. Rxf4 {[%clk 0:01:27]}  Bxd5 {[%clk 0:02:22]} 22. Bxd5 {[%clk 0:01:26]}  Ng5 {[%clk 0:02:20]} 23. Kh1 {[%clk 0:01:14]}  Rde8 {[%clk 0:02:20]} 24. Rf2 {[%clk 0:01:12]}  Re5 {[%clk 0:02:17]} 25. Rcf1 {[%clk 0:01:11]}  Nh3 {[%clk 0:02:01]} 26. Rd2 {[%clk 0:01:06]}  Qe7 {[%clk 0:01:59]} 27. Bg2 {[%clk 0:01:05]}  Ng5 {[%clk 0:01:59]} 28. Rdf2 {[%clk 0:01:05]}  Kh7 {[%clk 0:01:55]} 29. b4 {[%clk 0:01:04]}  Re1 {[%clk 0:01:47]} 30. Qd2 {[%clk 0:00:59]}  Rxf1+ {[%clk 0:01:41]} 31. Rxf1 {[%clk 0:00:59]}  Qe5 {[%clk 0:01:38]} 32. Bd5 {[%clk 0:00:53]}  Re8 {[%clk 0:01:35]} 33. Qf2 {[%clk 0:00:49]}  Nh3 {[%clk 0:01:20]} 34. Qg2 {[%clk 0:00:48]}  Ng5 {[%clk 0:01:20]} 35. Qf2 {[%clk 0:00:48]}  Kh8 {[%clk 0:00:56]} 36. Nxf5 {[%clk 0:00:40]}  Rf8 {[%clk 0:00:55]} 37. g4 {[%clk 0:00:40]}  Nxf5 {[%clk 0:00:51]} 38. gxf5 {[%clk 0:00:40]}  Nh7 {[%clk 0:00:46]} 39. Qg2 {[%clk 0:00:35]}  Qg7 {[%clk 0:00:39]} 40. Qxg7+ {[%clk 0:00:32]}  Kxg7 {[%clk 0:00:40]} 41. Rg1+ {[%clk 0:00:32]}  Kf6 {[%clk 0:00:31]} 42. Rg6+ {[%clk 0:00:32]}  Kxf5 {[%clk 0:00:32]} 43. Rxd6 {[%clk 0:00:26]}  Nf6 {[%clk 0:00:32]} 44. bxc5 {[%clk 0:00:22]}  bxc5 {[%clk 0:00:33]} 45. Ra6 {[%clk 0:00:21]}  Rb8 {[%clk 0:00:19]} 46. Kg2 {[%clk 0:00:20]}  Rb2+ {[%clk 0:00:17]} 47. Kh3 {[%clk 0:00:18]}  Nh5 {[%clk 0:00:15]} 48. Be4+ {[%clk 0:00:17]}  Ke5 {[%clk 0:00:15]} 49. Rxh6 {[%clk 0:00:15]}  Nf4+ {[%clk 0:00:15]} 50. Kg3 {[%clk 0:00:16]}  a5 {[%clk 0:00:13]} 51. Ra6 {[%clk 0:00:13]}  Ne2+ {[%clk 0:00:12]} 52. Kg4 {[%clk 0:00:13]}  Nc3 {[%clk 0:00:09]} 53. h4 {[%clk 0:00:13]}  Nxe4 {[%clk 0:00:08]} 54. dxe4 {[%clk 0:00:13]}  Kxe4 {[%clk 0:00:09]} 55. h5 {[%clk 0:00:13]}  Kd4 {[%clk 0:00:09]} 56. Rxa5 {[%clk 0:00:11]}  Kxc4 {[%clk 0:00:09]} 57. h6 {[%clk 0:00:10]}  Rh2 {[%clk 0:00:09]} 58. Kg5 {[%clk 0:00:10]}  Rg2+ {[%clk 0:00:10]} 59. Kf6 {[%clk 0:00:11]}  Rf2+ {[%clk 0:00:10]} 60. Kg7 {[%clk 0:00:11]}  Rg2+ {[%clk 0:00:11]} 61. Kh8 {[%clk 0:00:09]}  Kd4 {[%clk 0:00:10]} 62. Ra7 {[%clk 0:00:07]}  c4 {[%clk 0:00:11]} 63. Rd7+ {[%clk 0:00:06]}  Ke3 {[%clk 0:00:10]} 64. Rg7 {[%clk 0:00:06]}  Rh2 {[%clk 0:00:10]} 65. h7 {[%clk 0:00:06]}  c3 {[%clk 0:00:09]} 66. Rc7 {[%clk 0:00:06]}  Kd2 {[%clk 0:00:07]} 67. Kg8 {[%clk 0:00:06]}  Rg2+ {[%clk 0:00:07]} 68. Rg7 {[%clk 0:00:07]}  Re2 {[%clk 0:00:06]} 69. h8=Q {[%clk 0:00:06]}  Re8+ {[%clk 0:00:06]} 70. Kh7 {[%clk 0:00:06]}  Rxh8+ {[%clk 0:00:07]} 71. Kxh8 {[%clk 0:00:07]}  Kc2 {[%clk 0:00:07]} 72. Rc7 {[%clk 0:00:07]}  Kb3 {[%clk 0:00:08]} 73. a4 {[%clk 0:00:07]}  Kxa4 {[%clk 0:00:08]} 74. Rxc3 {[%clk 0:00:07]}  Kb4 {[%clk 0:00:00]} 75. Rc7 {[%clk 0:00:07]} 1-0

[Event "January 2 Late 2024"]
[Site "https://www.chess.com"]
[Date "2024.01.02"]
[Round "9"]
[White "Oparin, Grigoriy"]
[Black "Rasulov, Vugar"]
[Result "1-0"]
[Board "8"]
[TimeControl "180+1"]
[WhiteFideId "24125890"]
[BlackFideId "13402390"]
[WhiteElo "3053"]
[BlackElo "2974"]
[WhiteTeam "USA"]
[BlackTeam "AZE"]
[WhiteClock "0:00:42"]
[BlackClock "0:00:00"]

1. Nf3 {[%clk 0:03:00]}  Nf6 {[%clk 0:03:00]} 2. c4 {[%clk 0:03:01]}  e6 {[%clk 0:02:59]} 3. g3 {[%clk 0:03:02]}  d5 {[%clk 0:03:00]} 4. Bg2 {[%clk 0:03:02]}  d4 {[%clk 0:03:00]} 5. O-O {[%clk 0:03:01]}  Nc6 {[%clk 0:03:00]} 6. e3 {[%clk 0:02:58]}  Bc5 {[%clk 0:02:51]} 7. b4 {[%clk 0:02:57]}  Bxb4 {[%clk 0:02:46]} 8. Nxd4 {[%clk 0:02:57]}  Bd7 {[%clk 0:02:36]} 9. Bb2 {[%clk 0:02:43]}  O-O {[%clk 0:02:33]} 10. Nc2 {[%clk 0:02:42]}  Be7 {[%clk 0:02:28]} 11. d4 {[%clk 0:02:43]}  Na5 {[%clk 0:02:25]} 12. Nd2 {[%clk 0:02:43]}  c5 {[%clk 0:02:23]} 13. d5 {[%clk 0:02:43]}  exd5 {[%clk 0:02:20]} 14. cxd5 {[%clk 0:02:44]}  Bb5 {[%clk 0:02:10]} 15. e4 {[%clk 0:02:44]}  Bxf1 {[%clk 0:02:08]} 16. Qxf1 {[%clk 0:02:44]}  c4 {[%clk 0:01:38]} 17. Nxc4 {[%clk 0:02:39]}  Nxc4 {[%clk 0:01:35]} 18. Qxc4 {[%clk 0:02:40]}  Rc8 {[%clk 0:01:35]} 19. Qd3 {[%clk 0:02:35]}  Bc5 {[%clk 0:01:26]} 20. Nd4 {[%clk 0:02:19]}  Ng4 {[%clk 0:01:23]} 21. h3 {[%clk 0:02:11]}  Ne5 {[%clk 0:01:19]} 22. Qe2 {[%clk 0:02:11]}  Re8 {[%clk 0:01:15]} 23. Kh2 {[%clk 0:02:06]}  Bb6 {[%clk 0:01:06]} 24. Rd1 {[%clk 0:02:01]}  g6 {[%clk 0:00:56]} 25. Ba1 {[%clk 0:01:54]}  Nc4 {[%clk 0:00:42]} 26. f4 {[%clk 0:01:38]}  Bxd4 {[%clk 0:00:26]} 27. Rxd4 {[%clk 0:01:39]}  b5 {[%clk 0:00:20]} 28. e5 {[%clk 0:01:35]}  Qb6 {[%clk 0:00:21]} 29. h4 {[%clk 0:01:30]}  Rcd8 {[%clk 0:00:19]} 30. h5 {[%clk 0:01:29]}  Qc5 {[%clk 0:00:15]} 31. Qe4 {[%clk 0:01:08]}  Qa3 {[%clk 0:00:12]} 32. e6 {[%clk 0:01:04]}  Qxa2 {[%clk 0:00:07]} 33. Rxc4 {[%clk 0:00:57]}  Qxa1 {[%clk 0:00:05]} 34. Rc7 {[%clk 0:00:56]}  f5 {[%clk 0:00:03]} 35. Qe3 {[%clk 0:00:50]}  Qf6 {[%clk 0:00:03]} 36. Qxa7 {[%clk 0:00:43]}  b4 {[%clk 0:00:03]} 37. h6 {[%clk 0:00:42]}  Kf8 {[%clk 0:00:00]} 38. Rf7+ {[%clk 0:00:42]} 1-0

[Event "January 2 Late 2024"]
[Site "https://www.chess.com"]
[Date "2024.01.02"]
[Round "9"]
[White "Pranav, V"]
[Black "Kukhmazov, Arsen"]
[Result "1-0"]
[Board "11"]
[TimeControl "180+1"]
[WhiteFideId "25060783"]
[BlackFideId "24108260"]
[WhiteElo "3031"]
[BlackElo "2874"]
[WhiteTeam "IND"]
[BlackTeam "FID"]
[WhiteClock "0:01:24"]
[BlackClock "0:00:00"]

1. e4 {[%clk 0:03:00]}  c6 {[%clk 0:03:00]} 2. d4 {[%clk 0:02:59]}  d5 {[%clk 0:03:01]} 3. e5 {[%clk 0:03:00]}  Bf5 {[%clk 0:03:01]} 4. Nf3 {[%clk 0:03:01]}  e6 {[%clk 0:03:01]} 5. Be2 {[%clk 0:03:01]}  c5 {[%clk 0:03:02]} 6. O-O {[%clk 0:03:01]}  Nc6 {[%clk 0:03:02]} 7. c3 {[%clk 0:03:02]}  Bg6 {[%clk 0:03:02]} 8. Be3 {[%clk 0:03:00]}  cxd4 {[%clk 0:03:01]} 9. cxd4 {[%clk 0:03:00]}  Nge7 {[%clk 0:02:59]} 10. Nc3 {[%clk 0:02:59]}  Nf5 {[%clk 0:02:55]} 11. Rc1 {[%clk 0:03:00]}  Be7 {[%clk 0:02:52]} 12. Bf4 {[%clk 0:02:56]}  Bh5 {[%clk 0:02:37]} 13. Be3 {[%clk 0:02:44]}  O-O {[%clk 0:02:34]} 14. h3 {[%clk 0:02:36]}  Bxf3 {[%clk 0:02:34]} 15. Bxf3 {[%clk 0:02:37]}  Bg5 {[%clk 0:02:16]} 16. Qd3 {[%clk 0:02:32]}  Bxe3 {[%clk 0:01:45]} 17. fxe3 {[%clk 0:02:33]}  Qg5 {[%clk 0:01:46]} 18. Rce1 {[%clk 0:02:28]}  Rad8 {[%clk 0:01:07]} 19. a3 {[%clk 0:02:20]}  g6 {[%clk 0:00:47]} 20. Rf2 {[%clk 0:02:11]}  h5 {[%clk 0:00:47]} 21. Bd1 {[%clk 0:02:07]}  Kg7 {[%clk 0:00:40]} 22. Ba4 {[%clk 0:02:06]}  Nce7 {[%clk 0:00:34]} 23. Qe2 {[%clk 0:01:57]}  a6 {[%clk 0:00:32]} 24. Bc2 {[%clk 0:01:50]}  Rh8 {[%clk 0:00:21]} 25. Qf3 {[%clk 0:01:49]}  Qg3 {[%clk 0:00:15]} 26. Qe2 {[%clk 0:01:42]}  h4 {[%clk 0:00:14]} 27. Rf4 {[%clk 0:01:36]}  Qg5 {[%clk 0:00:10]} 28. Rg4 {[%clk 0:01:36]}  Qh5 {[%clk 0:00:10]} 29. Qf2 {[%clk 0:01:35]}  Kf8 {[%clk 0:00:09]} 30. Ne2 {[%clk 0:01:33]}  Nh6 {[%clk 0:00:07]} 31. Rxh4 {[%clk 0:01:32]}  Qg5 {[%clk 0:00:07]} 32. Rf1 {[%clk 0:01:30]}  Rh7 {[%clk 0:00:03]} 33. Rf4 {[%clk 0:01:26]}  Kg8 {[%clk 0:00:02]} 34. h4 {[%clk 0:01:24]}  Qh5 {[%clk 0:00:00]} 35. Ng3 {[%clk 0:01:24]} 1-0

[Event "January 2 Late 2024"]
[Site "https://www.chess.com"]
[Date "2024.01.02"]
[Round "9"]
[White "Fedoseev, Vladimir"]
[Black "Melkumyan, Hrant"]
[Result "0-1"]
[Board "12"]
[TimeControl "180+1"]
[WhiteFideId "24130737"]
[BlackFideId "13302485"]
[WhiteElo "3015"]
[BlackElo "2887"]
[WhiteTeam "SLO"]
[BlackTeam "ARM"]
[WhiteClock "0:00:08"]
[BlackClock "0:00:12"]

1. Nf3 {[%clk 0:03:00]}  d5 {[%clk 0:02:54]} 2. g3 {[%clk 0:03:00]}  Bg4 {[%clk 0:02:51]} 3. Bg2 {[%clk 0:03:00]}  c6 {[%clk 0:02:51]} 4. O-O {[%clk 0:03:00]}  e6 {[%clk 0:02:51]} 5. d3 {[%clk 0:02:57]}  Nd7 {[%clk 0:02:48]} 6. Nbd2 {[%clk 0:02:57]}  Bd6 {[%clk 0:02:47]} 7. e4 {[%clk 0:02:55]}  Ne7 {[%clk 0:02:47]} 8. Qe1 {[%clk 0:02:55]}  O-O {[%clk 0:02:43]} 9. h3 {[%clk 0:02:54]}  Bh5 {[%clk 0:02:38]} 10. a3 {[%clk 0:02:38]}  a5 {[%clk 0:02:38]} 11. b3 {[%clk 0:02:37]}  b5 {[%clk 0:02:25]} 12. Bb2 {[%clk 0:02:35]}  h6 {[%clk 0:02:14]} 13. Nd4 {[%clk 0:02:20]}  Qb6 {[%clk 0:02:08]} 14. exd5 {[%clk 0:01:46]}  exd5 {[%clk 0:01:50]} 15. Ne6 {[%clk 0:01:45]}  fxe6 {[%clk 0:01:28]} 16. Qxe6+ {[%clk 0:01:45]}  Rf7 {[%clk 0:01:29]} 17. Qxd6 {[%clk 0:01:43]}  Nf5 {[%clk 0:01:29]} 18. Qe6 {[%clk 0:01:26]}  Nxg3 {[%clk 0:01:26]} 19. Bf3 {[%clk 0:00:32]}  Bxf3 {[%clk 0:00:36]} 20. Nxf3 {[%clk 0:00:32]}  Nxf1 {[%clk 0:00:32]} 21. Rxf1 {[%clk 0:00:30]}  Nf8 {[%clk 0:00:24]} 22. Qg4 {[%clk 0:00:28]}  Re8 {[%clk 0:00:18]} 23. Nh4 {[%clk 0:00:18]}  Qc7 {[%clk 0:00:18]} 24. Nf5 {[%clk 0:00:18]}  Kh7 {[%clk 0:00:13]} 25. Ne3 {[%clk 0:00:18]}  Qf4 {[%clk 0:00:12]} 26. Qg2 {[%clk 0:00:16]}  Ng6 {[%clk 0:00:12]} 27. Bc1 {[%clk 0:00:12]}  Nh4 {[%clk 0:00:12]} 28. Qg4 {[%clk 0:00:08]}  Nf3+ {[%clk 0:00:12]} 0-1

[Event "January 2 Late 2024"]
[Site "https://www.chess.com"]
[Date "2024.01.02"]
[Round "9"]
[White "Remizov, Yaroslav"]
[Black "Van Foreest, Jorden"]
[Result "0-1"]
[Board "14"]
[TimeControl "180+1"]
[WhiteFideId "34134015"]
[BlackFideId "1039784"]
[WhiteElo "2844"]
[BlackElo "2999"]
[WhiteTeam "RUS"]
[BlackTeam "NED"]
[WhiteClock "0:00:00"]
[BlackClock "0:00:52"]

1. e4 {[%clk 0:03:00]}  e5 {[%clk 0:02:52]} 2. Nf3 {[%clk 0:03:00]}  Nc6 {[%clk 0:02:50]} 3. Bc4 {[%clk 0:03:00]}  Nf6 {[%clk 0:02:49]} 4. Ng5 {[%clk 0:03:00]}  d5 {[%clk 0:02:47]} 5. exd5 {[%clk 0:03:01]}  Na5 {[%clk 0:02:47]} 6. Bb5+ {[%clk 0:03:01]}  Bd7 {[%clk 0:02:48]} 7. Qe2 {[%clk 0:03:01]}  Bd6 {[%clk 0:02:46]} 8. Bxd7+ {[%clk 0:02:21]}  Qxd7 {[%clk 0:02:45]} 9. Nc3 {[%clk 0:02:21]}  O-O {[%clk 0:02:45]} 10. Nge4 {[%clk 0:01:58]}  Nxe4 {[%clk 0:02:43]} 11. Qxe4 {[%clk 0:01:59]}  f5 {[%clk 0:02:30]} 12. Qa4 {[%clk 0:01:59]}  Qxa4 {[%clk 0:02:29]} 13. Nxa4 {[%clk 0:02:00]}  c6 {[%clk 0:02:28]} 14. Nc3 {[%clk 0:01:36]}  Rac8 {[%clk 0:02:26]} 15. dxc6 {[%clk 0:01:16]}  Nxc6 {[%clk 0:02:27]} 16. d3 {[%clk 0:01:16]}  Nd4 {[%clk 0:02:26]} 17. Kd1 {[%clk 0:01:17]}  Bb4 {[%clk 0:02:18]} 18. Be3 {[%clk 0:01:04]}  Bxc3 {[%clk 0:02:18]} 19. bxc3 {[%clk 0:01:04]}  Rxc3 {[%clk 0:02:18]} 20. Bxd4 {[%clk 0:01:05]}  exd4 {[%clk 0:02:19]} 21. Re1 {[%clk 0:00:55]}  Rfc8 {[%clk 0:02:13]} 22. Re2 {[%clk 0:00:56]}  Kf7 {[%clk 0:02:13]} 23. Rb1 {[%clk 0:00:55]}  b6 {[%clk 0:02:13]} 24. Rb4 {[%clk 0:00:55]}  Rd8 {[%clk 0:02:10]} 25. Rb3 {[%clk 0:00:23]}  Kf6 {[%clk 0:02:01]} 26. Kd2 {[%clk 0:00:21]}  Rc5 {[%clk 0:02:01]} 27. f4 {[%clk 0:00:17]}  Rdc8 {[%clk 0:02:00]} 28. Rb2 {[%clk 0:00:17]}  h6 {[%clk 0:01:58]} 29. g3 {[%clk 0:00:17]}  g5 {[%clk 0:01:58]} 30. fxg5+ {[%clk 0:00:17]}  hxg5 {[%clk 0:01:58]} 31. Ke1 {[%clk 0:00:15]}  Re5 {[%clk 0:01:52]} 32. Rxe5 {[%clk 0:00:10]}  Kxe5 {[%clk 0:01:53]} 33. Kd2 {[%clk 0:00:10]}  f4 {[%clk 0:01:51]} 34. Rb5+ {[%clk 0:00:10]}  Kf6 {[%clk 0:01:52]} 35. gxf4 {[%clk 0:00:09]}  gxf4 {[%clk 0:01:53]} 36. Rd5 {[%clk 0:00:05]}  Rg8 {[%clk 0:01:34]} 37. Rxd4 {[%clk 0:00:05]}  Rg2+ {[%clk 0:01:35]} 38. Kc3 {[%clk 0:00:04]}  Kf5 {[%clk 0:01:33]} 39. Rd7 {[%clk 0:00:03]}  f3 {[%clk 0:01:33]} 40. Rf7+ {[%clk 0:00:02]}  Kg4 {[%clk 0:01:33]} 41. d4 {[%clk 0:00:01]}  Rxh2 {[%clk 0:01:33]} 42. d5 {[%clk 0:00:01]}  Rh5 {[%clk 0:01:30]} 43. d6 {[%clk 0:00:01]}  Rd5 {[%clk 0:01:30]} 44. d7 {[%clk 0:00:01]}  Kg3 {[%clk 0:01:27]} 45. Kc4 {[%clk 0:00:01]}  Rd6 {[%clk 0:01:28]} 46. Kb5 {[%clk 0:00:01]}  f2 {[%clk 0:01:28]} 47. Rg7+ {[%clk 0:00:02]}  Kf3 {[%clk 0:01:27]} 48. Rf7+ {[%clk 0:00:02]}  Ke2 {[%clk 0:01:26]} 49. Re7+ {[%clk 0:00:03]}  Kf1 {[%clk 0:01:13]} 50. Ka6 {[%clk 0:00:02]}  Rd4 {[%clk 0:01:06]} 51. Kxa7 {[%clk 0:00:02]}  Kg2 {[%clk 0:01:06]} 52. Rg7+ {[%clk 0:00:02]}  Kf3 {[%clk 0:01:06]} 53. Rf7+ {[%clk 0:00:02]}  Kg3 {[%clk 0:01:02]} 54. Rg7+ {[%clk 0:00:02]}  Kh4 {[%clk 0:01:02]} 55. Rh7+ {[%clk 0:00:02]}  Kg5 {[%clk 0:01:02]} 56. Rf7 {[%clk 0:00:03]}  Rxd7+ {[%clk 0:01:01]} 57. Rxd7 {[%clk 0:00:03]}  f1=Q {[%clk 0:01:02]} 58. Kxb6 {[%clk 0:00:03]}  Qb1+ {[%clk 0:01:01]} 59. Kc7 {[%clk 0:00:02]}  Qxc2+ {[%clk 0:01:02]} 60. Kd6 {[%clk 0:00:03]}  Qxa2 {[%clk 0:01:02]} 61. Re7 {[%clk 0:00:02]}  Kf6 {[%clk 0:01:02]} 62. Re4 {[%clk 0:00:01]}  Qd2+ {[%clk 0:01:02]} 63. Kc5 {[%clk 0:00:02]}  Kf5 {[%clk 0:01:02]} 64. Re7 {[%clk 0:00:02]}  Qc3+ {[%clk 0:01:01]} 65. Kd5 {[%clk 0:00:02]}  Qd3+ {[%clk 0:00:57]} 66. Kc6 {[%clk 0:00:02]}  Kf6 {[%clk 0:00:57]} 67. Re8 {[%clk 0:00:02]}  Qd4 {[%clk 0:00:57]} 68. Rc8 {[%clk 0:00:01]}  Ke7 {[%clk 0:00:57]} 69. Rc7+ {[%clk 0:00:01]}  Ke6 {[%clk 0:00:58]} 70. Kb7 {[%clk 0:00:02]}  Qb4+ {[%clk 0:00:57]} 71. Kc6 {[%clk 0:00:02]}  Qc4+ {[%clk 0:00:51]} 72. Kb6 {[%clk 0:00:02]}  Qb3+ {[%clk 0:00:52]} 73. Kc6 {[%clk 0:00:02]}  Qb4 {[%clk 0:00:52]} 74. Rb7 {[%clk 0:00:01]}  Qc4+ {[%clk 0:00:53]} 75. Kb6 {[%clk 0:00:01]}  Kd6 {[%clk 0:00:53]} 76. Ka7 {[%clk 0:00:02]}  Qa4+ {[%clk 0:00:53]} 77. Kb6 {[%clk 0:00:02]}  Qb4+ {[%clk 0:00:51]} 78. Ka7 {[%clk 0:00:02]}  Qa5+ {[%clk 0:00:51]} 79. Kb8 {[%clk 0:00:02]}  Kc6 {[%clk 0:00:51]} 80. Rh7 {[%clk 0:00:01]}  Qd8+ {[%clk 0:00:51]} 81. Ka7 {[%clk 0:00:01]}  Qd4+ {[%clk 0:00:52]} 82. Ka8 {[%clk 0:00:01]}  Qa1+ {[%clk 0:00:52]} 83. Kb8 {[%clk 0:00:00]}  Qb1+ {[%clk 0:00:52]} 0-1

[Event "January 2 Late 2024"]
[Site "https://www.chess.com"]
[Date "2024.01.02"]
[Round "9"]
[White "Livaic, Leon"]
[Black "Yarar, Bora"]
[Result "1-0"]
[Board "20"]
[TimeControl "180+1"]
[WhiteFideId "14531534"]
[BlackFideId "34588400"]
[WhiteElo "2908"]
[BlackElo "2789"]
[WhiteTeam "CRO"]
[BlackTeam "TUR"]
[WhiteClock "0:00:39"]
[BlackClock "0:00:03"]

1. d4 {[%clk 0:03:00]}  d5 {[%clk 0:02:59]} 2. c4 {[%clk 0:03:01]}  dxc4 {[%clk 0:02:59]} 3. e3 {[%clk 0:03:01]}  Nf6 {[%clk 0:02:59]} 4. Bxc4 {[%clk 0:03:02]}  e6 {[%clk 0:03:00]} 5. Nf3 {[%clk 0:03:02]}  c5 {[%clk 0:03:00]} 6. O-O {[%clk 0:03:03]}  cxd4 {[%clk 0:03:01]} 7. Nxd4 {[%clk 0:02:57]}  a6 {[%clk 0:03:00]} 8. b3 {[%clk 0:02:57]}  Bd6 {[%clk 0:03:00]} 9. Bb2 {[%clk 0:02:57]}  O-O {[%clk 0:03:00]} 10. Nd2 {[%clk 0:02:54]}  Qe7 {[%clk 0:02:55]} 11. Be2 {[%clk 0:02:46]}  e5 {[%clk 0:02:48]} 12. N4f3 {[%clk 0:02:46]}  Rd8 {[%clk 0:02:40]} 13. Qc2 {[%clk 0:02:40]}  Nc6 {[%clk 0:02:35]} 14. Rad1 {[%clk 0:02:34]}  Bg4 {[%clk 0:02:25]} 15. h3 {[%clk 0:02:23]}  Bh5 {[%clk 0:02:22]} 16. Nc4 {[%clk 0:02:19]}  Bg6 {[%clk 0:02:18]} 17. Qc1 {[%clk 0:02:17]}  Rac8 {[%clk 0:02:11]} 18. Rxd6 {[%clk 0:01:59]}  Rxd6 {[%clk 0:02:07]} 19. Ba3 {[%clk 0:02:00]}  Ne8 {[%clk 0:01:44]} 20. Nxd6 {[%clk 0:01:59]}  Nxd6 {[%clk 0:01:44]} 21. Rd1 {[%clk 0:01:54]}  Rd8 {[%clk 0:00:26]} 22. Qd2 {[%clk 0:01:49]}  e4 {[%clk 0:00:26]} 23. Ne1 {[%clk 0:01:09]}  Nc8 {[%clk 0:00:16]} 24. Bxe7 {[%clk 0:01:05]}  Rxd2 {[%clk 0:00:16]} 25. Rxd2 {[%clk 0:01:06]}  N8xe7 {[%clk 0:00:16]} 26. Nc2 {[%clk 0:01:05]}  h6 {[%clk 0:00:15]} 27. Rd7 {[%clk 0:01:03]}  b5 {[%clk 0:00:14]} 28. Nd4 {[%clk 0:01:02]}  Bf5 {[%clk 0:00:14]} 29. Rd6 {[%clk 0:00:53]}  Nxd4 {[%clk 0:00:13]} 30. exd4 {[%clk 0:00:47]}  Be6 {[%clk 0:00:12]} 31. Rxa6 {[%clk 0:00:46]}  Nf5 {[%clk 0:00:13]} 32. Bxb5 {[%clk 0:00:43]}  Nxd4 {[%clk 0:00:13]} 33. Bc4 {[%clk 0:00:43]}  Bf5 {[%clk 0:00:09]} 34. a4 {[%clk 0:00:40]}  g5 {[%clk 0:00:03]} 35. a5 {[%clk 0:00:39]} 1-0

[Event "January 2 Late 2024"]
[Site "https://www.chess.com"]
[Date "2024.01.02"]
[Round "9"]
[White "Adewumi, Tanitoluwa"]
[Black "Sanal, Vahap"]
[Result "0-1"]
[Board "21"]
[TimeControl "180+1"]
[WhiteFideId "30966396"]
[BlackFideId "6300545"]
[WhiteElo "2730"]
[BlackElo "2900"]
[WhiteTeam "USA"]
[BlackTeam "TUR"]
[WhiteClock "0:00:02"]
[BlackClock "0:01:34"]

1. e4 {[%clk 0:03:00]}  d6 {[%clk 0:02:54]} 2. d4 {[%clk 0:03:00]}  Nf6 {[%clk 0:02:54]} 3. Nc3 {[%clk 0:03:00]}  e5 {[%clk 0:02:54]} 4. Nf3 {[%clk 0:03:01]}  Nbd7 {[%clk 0:02:53]} 5. Bc4 {[%clk 0:03:00]}  Be7 {[%clk 0:02:54]} 6. O-O {[%clk 0:03:00]}  O-O {[%clk 0:02:54]} 7. Re1 {[%clk 0:03:00]}  c6 {[%clk 0:02:54]} 8. a4 {[%clk 0:03:00]}  h6 {[%clk 0:02:55]} 9. h3 {[%clk 0:03:00]}  Re8 {[%clk 0:02:55]} 10. Be3 {[%clk 0:02:57]}  exd4 {[%clk 0:02:55]} 11. Bxd4 {[%clk 0:02:58]}  Nf8 {[%clk 0:02:55]} 12. a5 {[%clk 0:02:08]}  Be6 {[%clk 0:02:53]} 13. Bd3 {[%clk 0:02:02]}  Ng6 {[%clk 0:02:52]} 14. Qd2 {[%clk 0:01:51]}  Qc7 {[%clk 0:02:50]} 15. e5 {[%clk 0:01:44]}  dxe5 {[%clk 0:02:46]} 16. Bxg6 {[%clk 0:01:44]}  exd4 {[%clk 0:02:41]} 17. Nxd4 {[%clk 0:01:45]}  Bc4 {[%clk 0:02:40]} 18. Bd3 {[%clk 0:01:38]}  Bxd3 {[%clk 0:02:40]} 19. Qxd3 {[%clk 0:01:39]}  Rad8 {[%clk 0:02:40]} 20. Qc4 {[%clk 0:01:37]}  Bd6 {[%clk 0:02:30]} 21. a6 {[%clk 0:01:32]}  b5 {[%clk 0:02:20]} 22. Rxe8+ {[%clk 0:00:56]}  Nxe8 {[%clk 0:02:20]} 23. Qxc6 {[%clk 0:00:53]}  Bh2+ {[%clk 0:02:18]} 24. Kf1 {[%clk 0:00:40]}  b4 {[%clk 0:02:19]} 25. Ncb5 {[%clk 0:00:30]}  Qf4 {[%clk 0:02:03]} 26. Re1 {[%clk 0:00:26]}  Nf6 {[%clk 0:02:03]} 27. Nf3 {[%clk 0:00:22]}  g5 {[%clk 0:01:50]} 28. g3 {[%clk 0:00:13]}  Bxg3 {[%clk 0:01:51]} 29. fxg3 {[%clk 0:00:14]}  Qf5 {[%clk 0:01:51]} 30. Kg2 {[%clk 0:00:10]}  Rc8 {[%clk 0:01:52]} 31. Nd6 {[%clk 0:00:05]}  Qxc2+ {[%clk 0:01:49]} 32. Qxc2 {[%clk 0:00:05]}  Rxc2+ {[%clk 0:01:50]} 33. Kg1 {[%clk 0:00:05]}  Rxb2 {[%clk 0:01:51]} 34. Re7 {[%clk 0:00:02]}  Ra2 {[%clk 0:01:49]} 35. Rxf7 {[%clk 0:00:02]}  b3 {[%clk 0:01:48]} 36. Rb7 {[%clk 0:00:02]}  b2 {[%clk 0:01:48]} 37. Ne1 {[%clk 0:00:02]}  Nd5 {[%clk 0:01:39]} 38. Kf1 {[%clk 0:00:02]}  Nc3 {[%clk 0:01:30]} 39. Nc4 {[%clk 0:00:01]}  b1=Q {[%clk 0:01:30]} 40. Rxb1 {[%clk 0:00:02]}  Nxb1 {[%clk 0:01:31]} 41. Nd3 {[%clk 0:00:02]}  Rxa6 {[%clk 0:01:32]} 42. Nde5 {[%clk 0:00:02]}  Ra2 {[%clk 0:01:30]} 43. h4 {[%clk 0:00:02]}  Nd2+ {[%clk 0:01:31]} 44. Ke1 {[%clk 0:00:01]}  Nxc4 {[%clk 0:01:30]} 45. Nxc4 {[%clk 0:00:02]}  gxh4 {[%clk 0:01:30]} 46. gxh4 {[%clk 0:00:02]}  Ra4 {[%clk 0:01:31]} 47. Nd6 {[%clk 0:00:02]}  Rxh4 {[%clk 0:01:32]} 48. Nf5 {[%clk 0:00:03]}  Rh5 {[%clk 0:01:32]} 49. Ng3 {[%clk 0:00:02]}  Re5+ {[%clk 0:01:32]} 50. Kd2 {[%clk 0:00:02]}  a5 {[%clk 0:01:33]} 51. Kd3 {[%clk 0:00:03]}  Kg7 {[%clk 0:01:33]} 52. Kd4 {[%clk 0:00:02]}  Kf6 {[%clk 0:01:34]} 53. Nf1 {[%clk 0:00:02]}  h5 {[%clk 0:01:34]} 54. Nd2 {[%clk 0:00:02]}  h4 {[%clk 0:01:34]} 55. Nf3 {[%clk 0:00:02]}  Rh5 {[%clk 0:01:34]} 56. Nh2 {[%clk 0:00:02]}  h3 {[%clk 0:01:34]} 57. Ke4 {[%clk 0:00:03]}  a4 {[%clk 0:01:35]} 58. Ng4+ {[%clk 0:00:02]}  Kg7 {[%clk 0:01:34]} 0-1